fUST/lending_fUST_20250822
["ID","MTS","AMOUNT","RATE_DAILY","PERIOD"]
[380505749,1755796260158,-480.0,0.00020993,2]
[380505750,1755796260167,-4775.52,0.00020993,2]
[380505751,1755796260176,-6987.43,0.00020993,2]
[380505752,1755796260187,-3878.59,0.00020993,2]
[380505753,1755796260196,-1093.09,0.00020993,2]
[380505754,1755796260206,-480.0,0.00020993,2]
[380505755,1755796260216,-2831.65,0.00020993,2]
[380505756,1755796260225,-899.66,0.00020993,2]
[380505757,1755796260235,-3918.0,0.00020993,2]
[380505758,1755796260244,-1555.41,0.00020993,2]
[380505759,1755796260253,-480.0,0.00020993,2]
[380505760,1755796260262,-424.13757267,0.00020993,2]
[380505761,1755796260272,-596.22,0.00020993,2]
[380505762,1755796260281,-708.6,0.00020993,2]
[380505763,1755796260290,-1773.59,0.00020993,2]
[380505764,1755796260299,-704.13,0.00020995,2]
[380505765,1755796260308,-845.88,0.00020995,2]
[380505766,1755796260318,-480.0,0.00020995,2]
[380505767,1755796260327,-480.0,0.00020995,2]
[380505768,1755796260336,-480.0,0.00020995,2]
[380505769,1755796260346,-480.0,0.00020995,2]
[380505770,1755796260356,-480.0,0.00020995,2]
[380505771,1755796260369,-480.0,0.00020995,2]
[380505772,1755796260378,-480.0,0.00020995,2]
[380505773,1755796260387,-377.30327567,0.00020995,2]
[380505774,1755796260396,-480.0,0.00020995,2]
[380505775,1755796260406,-1251.4,0.00020995,2]
[380505776,1755796260415,-1860.53,0.00020995,2]
[380505777,1755796260425,-480.0,0.00020995,2]
[380505778,1755796260435,-1217.86,0.00020995,2]
[380505779,1755796260445,-584.1,0.00020995,2]
[380505780,1755796260458,-480.0,0.00020995,2]
[380505781,1755796260468,-566.7,0.00020995,2]
[380505782,1755796260477,-480.0,0.00020995,2]
[380505783,1755796260487,-480.0,0.00020995,2]
[380505784,1755796260497,-480.0,0.00020995,2]
[380505785,1755796260507,-482.49951752,0.00020995,2]
[380505786,1755796260516,-480.0,0.00020995,2]
[380505787,1755796260526,-1339.59,0.00020995,2]
[380505788,1755796260535,-764.64,0.00020995,2]
[380505789,1755796260546,-1403.75,0.00020995,2]
[380505790,1755796260556,-493.09,0.00020995,2]
[380505791,1755796260565,-1591.86,0.00020995,2]
[380505792,1755796260574,-1264.66,0.00020995,2]
[380505793,1755796260583,-480.0,0.00020995,2]
[380505794,1755796260592,-480.0,0.00020995,2]
[380505795,1755796260602,-480.0,0.00020995,2]
[380505796,1755796260611,-638.49,0.00020995,2]
[380505797,1755796260621,-480.0,0.00020995,2]
[380505798,1755796260630,-898.89,0.00020995,2]
[380505799,1755796260639,-712.51,0.00020995,2]
[380505800,1755796260648,-1704.85,0.00020995,2]
[380505801,1755796260658,-578.35,0.00020995,2]
[380505802,1755796260667,-1348.45,0.00020995,2]
[380505803,1755796260676,-480.0,0.00020995,2]
[380505804,1755796260686,-1704.87,0.00020995,2]
[380505805,1755796260696,-1021.37,0.00020995,2]
[380505806,1755796260705,-480.0,0.00020995,2]
[380505807,1755796260715,-2738.27,0.00020995,2]
[380505808,1755796260724,-764.6,0.00020995,2]
[380505809,1755796260734,-1669.08,0.00020995,2]
[380505810,1755796260743,-3186.28,0.00020995,2]
[380505811,1755796260751,-2363.46,0.00020995,2]
[380505812,1755796260761,-862.84,0.00020995,2]
[380505813,1755796260771,-1526.94,0.00020995,2]
[380505814,1755796260781,-480.0,0.00020995,2]
[380505815,1755796260791,-517.72,0.00020995,2]
[380505816,1755796260800,-13490.57,0.00020995,2]
[380505817,1755796260810,-749.78,0.00020995,2]
[380505818,1755796260819,-514.0,0.00020995,2]
[380505819,1755796260829,-480.0,0.00020995,2]
[380505820,1755796260838,-3003.54,0.00020995,2]
[380505821,1755796260848,-725.46,0.00020995,2]
[380505822,1755796260857,-480.0,0.00020995,2]
[380505823,1755796260866,-12836.72,0.00020995,2]
[380505824,1755796260876,-248.60455411,0.00020995,2]
[380505825,1755796260885,-480.0,0.00020995,2]
[380505826,1755796260895,-1243.1,0.00020995,2]
[380505827,1755796260904,-1609.93,0.00020995,2]
[380505828,1755796260913,-480.0,0.00020995,2]
[380505829,1755796260922,-480.0,0.00020995,2]
[380505830,1755796260931,-8565.46,0.00020995,2]
[380505831,1755796260943,-480.0,0.00020995,2]
[380505832,1755796260954,-513.5,0.00020996,2]
[380505833,1755796260963,-2071.92,0.00020996,2]
[380505834,1755796260972,-1723.01,0.00020996,2]
[380505835,1755796260983,-3623.53,0.00020996,2]
[380505836,1755796260993,-500.0,0.00021007,2]
[380505837,1755796261003,-480.0,0.00021007,2]
[380505838,1755796261013,-513.47,0.00021007,2]
[380505839,1755796261023,-480.0,0.00021007,2]
[380505840,1755796261032,-481.12,0.00021007,2]
[380505841,1755796261041,-1100.62,0.00021007,2]
[380505842,1755796261051,-676.36,0.00021007,2]
[380505843,1755796261060,-544.49,0.00021007,2]
[380505844,1755796261070,-287.87349595,0.00021007,2]
[380505845,1755796261080,-773.22,0.00021007,2]
[380505846,1755796261090,-480.0,0.00021007,2]
[380505847,1755796261099,-1666.89,0.00021007,2]
[380505848,1755796261109,-480.0,0.00021007,2]
[380505849,1755796261119,-480.0,0.00021007,2]
[380505850,1755796261129,-574.32,0.00021007,2]
[380505851,1755796261139,-686.37,0.00021007,2]
[380505852,1755796261148,-480.0,0.00021007,2]
[380505853,1755796261158,-783.65,0.00021007,2]
[380505854,1755796261167,-991.06,0.00021007,2]
[380505855,1755796261177,-480.0,0.00021007,2]
[380505856,1755796261187,-804.94,0.00021007,2]
[380505857,1755796261197,-480.0,0.00021007,2]
[380505858,1755796261206,-4916.94,0.00021007,2]
[380505859,1755796261216,-480.0,0.00021007,2]
[380505860,1755796261225,-1776.85,0.00021007,2]
[380505861,1755796261235,-918.37,0.00021007,2]
[380505862,1755796261245,-1076.14,0.00021007,2]
[380505863,1755796261254,-525.31,0.00021007,2]
[380505864,1755796261263,-2049.35,0.00021007,2]
[380505865,1755796261272,-480.0,0.00021007,2]
[380505866,1755796261281,-1215.14,0.00021007,2]
[380505867,1755796261291,-793.31,0.00021007,2]
[380505868,1755796261301,-151.0,0.00021007,2]
[380505869,1755796261310,-480.0,0.00021008,2]
[380505870,1755796261319,-1285.05,0.00021008,2]
[380505871,1755796261328,-884.72,0.00021008,2]
[380505872,1755796261337,-978.38,0.00021008,2]
[380505873,1755796261346,-480.0,0.00021008,2]
[380505874,1755796261501,-480.0,0.00021008,2]
[380505875,1755796261512,-480.0,0.00021008,2]
[380505876,1755796261521,-480.0,0.00021008,2]
[380505877,1755796261531,-801.62,0.00021008,2]
[380505878,1755796261541,-1223.71,0.00021008,2]
[380505879,1755796261550,-677.58,0.00021008,2]
[380505880,1755796261560,-480.0,0.00021008,2]
[380505881,1755796261569,-480.0,0.00021008,2]
[380505882,1755796261579,-480.0,0.00021008,2]
[380505883,1755796261589,-566.96,0.00021008,2]
[380505884,1755796261599,-480.0,0.00021008,2]
[380505885,1755796261608,-480.0,0.00021008,2]
[380505886,1755796261618,-480.0,0.00021008,2]
[380505887,1755796261627,-1649.16,0.00021008,2]
[380505888,1755796261636,-480.0,0.00021008,2]
[380505889,1755796261645,-715.91,0.00021008,2]
[380505890,1755796261655,-480.0,0.00021008,2]
[380505891,1755796261664,-691.28,0.00021008,2]
[380505892,1755796261673,-480.0,0.00021008,2]
[380505893,1755796261683,-1001.2,0.00021008,2]
[380505894,1755796261696,-480.0,0.00021008,2]
[380505895,1755796261706,-480.0,0.00021008,2]
[380505896,1755796261714,-720.08,0.00021008,2]
[380505897,1755796261723,-823.48,0.00021008,2]
[380505898,1755796261733,-480.0,0.00021008,2]
[380505899,1755796261742,-480.0,0.00021008,2]
[380505900,1755796261751,-612.13,0.00021008,2]
[380505901,1755796261760,-502.96,0.00021008,2]
[380505902,1755796261770,-551.16,0.00021008,2]
[380505903,1755796261779,-529.97,0.00021008,2]
[380505904,1755796261788,-750.1,0.00021008,2]
[380505905,1755796261798,-3389.44,0.00021008,2]
[380505906,1755796261807,-480.0,0.00021008,2]
[380505907,1755796261816,-480.0,0.00021008,2]
[380505908,1755796261825,-587.17,0.00021008,2]
[380505909,1755796261835,-151.0,0.00021008,2]
[380505910,1755796261847,-151.0,0.00021008,2]
[380505911,1755796261856,-151.0,0.00021008,2]
[380505912,1755796261866,-151.88639,0.00021008,2]
[380505913,1755796261876,-151.0,0.00021008,2]
[380505914,1755796261885,-160.034594,0.00021008,2]
[380505915,1755796261895,-151.0,0.00021008,2]
[380505916,1755796261905,-151.0,0.00021008,2]
[380505917,1755796261914,-151.0,0.00021008,2]
[380505918,1755796261925,-480.0,0.00021008,2]
[380505919,1755796261935,-151.0,0.00021008,2]
[380505920,1755796261946,-480.0,0.00021008,2]
[380505921,1755796261955,-480.0,0.00021008,2]
[380505922,1755796261965,-480.0,0.00021008,2]
[380505923,1755796261975,-480.0,0.00021008,2]
[380505924,1755796261984,-1316.255262,0.00021008,2]
[380505925,1755796261994,-630.38,0.00021008,2]
[380505926,1755796262004,-1316.255262,0.00021008,2]
[380505927,1755796262013,-1316.255262,0.00021008,2]
[380505928,1755796262022,-1316.255262,0.00021008,2]
[380505929,1755796262032,-235.0,0.00021008,2]
[380505930,1755796262041,-151.0,0.00021008,2]
[380505931,1755796262051,-151.0,0.00021008,2]
[380505932,1755796262060,-167.210458,0.00021008,2]
[380505933,1755796262070,-480.0,0.00021008,2]
[380505934,1755796262079,-167.210458,0.00021008,2]
[380505935,1755796262089,-167.210458,0.00021008,2]
[380505936,1755796262098,-167.210458,0.00021008,2]
[380505937,1755796262107,-175.808713,0.00021008,2]
[380505938,1755796262118,-151.0,0.00021008,2]
[380505939,1755796262127,-151.0,0.00021008,2]
[380505940,1755796262137,-480.0,0.00021008,2]
[380505941,1755796262146,-151.0,0.00021008,2]
[380505942,1755796262156,-151.0,0.00021008,2]
[380505943,1755796262166,-151.0,0.00021008,2]
[380505944,1755796262176,-175.808713,0.00021008,2]
[380505945,1755796262185,-151.0,0.00021008,2]
[380505946,1755796262196,-151.0,0.00021008,2]
[380505947,1755796262206,-175.808713,0.00021008,2]
[380505948,1755796262216,-754.78,0.00021008,2]
[380505949,1755796262225,-175.808713,0.00021008,2]
[380505950,1755796262234,-480.0,0.00021008,2]
[380505951,1755796262244,-151.0,0.00021008,2]
[380505952,1755796262253,-282.937359,0.00021008,2]
[380505953,1755796262263,-282.937359,0.00021008,2]
[380505954,1755796262272,-282.937359,0.00021008,2]
[380505955,1755796262281,-480.0,0.00021008,2]
[380505956,1755796262290,-282.937359,0.00021008,2]
[380505957,1755796262299,-880.68,0.00021008,2]
[380505958,1755796262309,-216.083392,0.00021008,2]
[380505959,1755796262318,-216.083392,0.00021008,2]
[380505960,1755796262327,-216.083392,0.00021008,2]
[380505961,1755796262337,-216.083392,0.00021008,2]
[380505962,1755796262346,-1106.61,0.00021008,2]
[380505963,1755796262356,-1175.7,0.00021008,2]
[380505964,1755796262366,-151.0,0.00021008,2]
[380505965,1755796262378,-456.115824,0.00021008,2]
[380505966,1755796262387,-456.115824,0.00021008,2]
[380505967,1755796262397,-1000.0,0.00021021,2]
[380505968,1755796262408,-1000.0,0.00021021,2]
[380505969,1755796262417,-1000.0,0.00021021,2]
[380505970,1755796262426,-1000.0,0.00021021,2]
[380505971,1755796262436,-1000.0,0.00021021,2]
[380505972,1755796262448,-260.0,0.00021073,2]
[380505973,1755796262457,-600.0,0.00021095,2]
[380505974,1755796262467,-480.0,0.00021109,2]
[380505975,1755796262475,-480.0,0.00021109,2]
[380505976,1755796262485,-480.0,0.00021109,2]
[380505977,1755796262494,-480.0,0.00021109,2]
[380505978,1755796262503,-480.0,0.00021109,2]
[380505979,1755796262513,-480.0,0.00021109,2]
[380505980,1755796262522,-494.99,0.00021109,2]
[380505981,1755796262531,-480.0,0.00021109,2]
[380505982,1755796262542,-480.0,0.00021109,2]
[380505983,1755796262551,-480.0,0.00021109,2]
[380505984,1755796262560,-480.0,0.00021109,2]
[380505985,1755796262569,-480.0,0.00021109,2]
[380505986,1755796262579,-480.0,0.00021109,2]
[380505987,1755796262588,-480.0,0.00021109,2]
[380505988,1755796262597,-480.0,0.00021109,2]
[380505989,1755796262607,-480.0,0.00021109,2]
[380505990,1755796262616,-555.05,0.00021109,2]
[380505991,1755796262626,-662.68,0.00021109,2]
[380505992,1755796262636,-480.0,0.00021109,2]
[380505993,1755796262646,-480.0,0.00021109,2]
[380505994,1755796262655,-504.0,0.00021109,2]
[380505995,1755796262664,-480.0,0.00021109,2]
[380505996,1755796262674,-480.0,0.00021109,2]
[380505997,1755796262683,-579.16,0.00021109,2]
[380505998,1755796262694,-878.34,0.00021109,2]
[380505999,1755796262703,-625.09,0.00021109,2]
[380506000,1755796262713,-480.0,0.00021109,2]
[380506001,1755796262723,-480.0,0.00021109,2]
[380506002,1755796262732,-480.0,0.00021109,2]
[380506003,1755796262741,-480.0,0.00021109,2]
[380506004,1755796262751,-662.68,0.00021109,2]
[380506005,1755796262761,-486.45,0.00021109,2]
[380506006,1755796262771,-480.0,0.00021109,2]
[380506007,1755796262780,-741.24,0.00021109,2]
[380506008,1755796262789,-480.0,0.00021109,2]
[380506009,1755796262798,-151.0,0.00021109,2]
[380506010,1755796262806,-151.0,0.00021109,2]
[380506011,1755796262816,-151.0,0.00021109,2]
[380506012,1755796262825,-490.79,0.00021109,2]
[380506013,1755796262834,-839.98,0.00021109,2]
[380506014,1755796262843,-151.0,0.00021109,2]
[380506015,1755796262853,-480.0,0.00021109,2]
[380506016,1755796262862,-303.340635,0.00021109,2]
[380506017,1755796262872,-151.0,0.00021109,2]
[380506018,1755796262881,-303.340635,0.00021109,2]
[380506019,1755796262890,-551.40395806,0.00021109,2]
[380506020,1755796262899,-253.823847,0.00021109,2]
[380506021,1755796262909,-253.823847,0.00021109,2]
[380506022,1755796262919,-253.823847,0.00021109,2]
[380506023,1755796262928,-151.0,0.00021109,2]
[380506024,1755796262937,-253.823847,0.00021109,2]
[380506025,1755796262947,-480.0,0.00021109,2]
[380506026,1755796262957,-151.0,0.00021109,2]
[380506027,1755796262966,-151.0,0.00021109,2]
[380506028,1755796262975,-259.677393,0.00021109,2]
[380506029,1755796262985,-617.8,0.00021109,2]
[380506030,1755796262994,-756.41,0.00021109,2]
[380506031,1755796263004,-480.0,0.00021109,2]
[380506032,1755796263014,-468.506121,0.00021109,2]
[380506033,1755796263025,-468.506121,0.00021109,2]
[380506034,1755796263034,-468.506121,0.00021109,2]
[380506035,1755796263044,-468.506121,0.00021109,2]
[380506036,1755796263054,-988.19,0.00021109,2]
[380506037,1755796263064,-719.39,0.00021109,2]
[380506038,1755796263073,-151.0,0.00021109,2]
[380506039,1755796263083,-604.00888814,0.00021109,2]
[380506040,1755796263092,-896.1,0.00021109,2]
[380506041,1755796263101,-735.04,0.00021109,2]
[380506042,1755796263111,-526.43,0.00021109,2]
[380506043,1755796263121,-751.72,0.00021109,2]
[380506044,1755796263132,-1889.29,0.00021109,2]
[380506045,1755796263142,-249.95480668,0.00021109,2]
[380506046,1755796263151,-480.0,0.00021109,2]
[380506047,1755796263161,-685.028,0.0002112,2]
[380506048,1755796263172,-480.0,0.00021121,2]
[380506049,1755796263182,-480.0,0.00021121,2]
[380506050,1755796263193,-480.0,0.00021121,2]
[380506051,1755796263203,-480.0,0.00021121,2]
[380506052,1755796263212,-151.0,0.00021121,2]
[380506053,1755796263222,-151.0,0.00021121,2]
[380506054,1755796263232,-151.0,0.00021165,2]
[380506055,1755796263241,-645.94557468,0.00021168,2]
[380506056,1755796263251,-1784.61509112,0.00021175,2]
[380506057,1755796263261,-1000.0,0.00021221,2]
[380506058,1755796263271,-1000.0,0.00021221,2]
[380506059,1755796263280,-1000.0,0.00021221,2]
[380506060,1755796263289,-318.4688872,0.00021222,2]
[380506061,1755796263298,-237.2109269,0.00021255,2]
[380506062,1755796263308,-553.68,0.00021266,2]
[380506063,1755796263317,-952.91,0.00021266,2]
[380506064,1755796263327,-1069.9,0.00021266,2]
[380506065,1755796263336,-841.6,0.00021266,2]
[380506066,1755796263345,-1098.95,0.00021266,2]
[380506067,1755796263355,-480.0,0.00021266,2]
[380506068,1755796263368,-5724.64,0.00021267,2]
[380506069,1755796263378,-480.0,0.00021267,2]
[380506070,1755796263387,-3111.45,0.00021267,2]
[380506071,1755796263396,-638.16,0.00021267,2]
[380506072,1755796263406,-1517.06,0.00021267,2]
[380506073,1755796263415,-1101.04,0.00021267,2]
[380506074,1755796263425,-480.0,0.00021267,2]
[380506075,1755796263435,-480.0,0.00021267,2]
[380506076,1755796263449,-4775.52,0.00021267,2]
[380506077,1755796263459,-6987.43,0.00021267,2]
[380506078,1755796263468,-3878.59,0.00021267,2]
[380506079,1755796263477,-1093.09,0.00021267,2]
[380506080,1755796263488,-480.0,0.00021267,2]
[380506081,1755796263497,-2831.65,0.00021267,2]
[380506082,1755796263507,-899.66,0.00021267,2]
[380506083,1755796263516,-3918.0,0.00021267,2]
[380506084,1755796263526,-1555.41,0.00021267,2]
[380506085,1755796263536,-480.0,0.00021267,2]
[380506086,1755796263546,-596.22,0.00021267,2]
[380506087,1755796263556,-708.6,0.00021267,2]
[380506088,1755796263566,-1773.59,0.00021267,2]
[380506089,1755796263576,-1500.0,0.00021268,2]
[380506090,1755796263586,-500.0,0.00021268,2]
[380506091,1755796263596,-1500.0,0.00021268,2]
[380506092,1755796263606,-1500.0,0.00021268,2]
[380506093,1755796263615,-1622.80010316,0.00021268,2]
[380506094,1755796263625,-1500.0,0.00021268,2]
[380506095,1755796263635,-508.93775355,0.00021268,2]
[380506096,1755796263644,-1500.0,0.00021268,2]
[380506097,1755796263654,-1500.0,0.00021268,2]
[380506098,1755796263664,-1500.0,0.00021268,2]
[380506099,1755796263674,-704.13,0.00021269,2]
[380506100,1755796263684,-845.88,0.00021269,2]
[380506101,1755796263696,-480.0,0.00021269,2]
[380506102,1755796263706,-151.0,0.00021269,2]
[380506103,1755796263715,-151.0,0.00021269,2]
[380506104,1755796263725,-151.0,0.00021269,2]
[380506105,1755796263734,-480.0,0.00021269,2]
[380506106,1755796263744,-480.0,0.00021269,2]
[380506107,1755796263753,-233.412459,0.00021269,2]
[380506108,1755796263763,-233.412459,0.00021269,2]
[380506109,1755796263772,-233.412459,0.00021269,2]
[380506110,1755796263781,-233.412459,0.00021269,2]
[380506111,1755796263790,-151.0,0.00021269,2]
[380506112,1755796263798,-151.0,0.00021269,2]
[380506113,1755796263805,-480.0,0.00021269,2]
[380506114,1755796263814,-480.0,0.00021269,2]
[380506115,1755796263822,-151.854492,0.00021269,2]
[380506116,1755796263831,-480.0,0.00021269,2]
[380506117,1755796263840,-480.0,0.00021269,2]
[380506118,1755796263849,-480.0,0.00021269,2]
[380506119,1755796263859,-1251.4,0.00021269,2]
[380506120,1755796263868,-1860.53,0.00021269,2]
[380506121,1755796263878,-480.0,0.00021269,2]
[380506122,1755796263887,-1217.86,0.00021269,2]
[380506123,1755796263896,-584.1,0.00021269,2]
[380506124,1755796263906,-262.92745795,0.00021269,2]
[380506125,1755796263915,-566.7,0.00021269,2]
[380506126,1755796263924,-480.0,0.00021269,2]
[380506127,1755796263933,-480.0,0.00021269,2]
[380506128,1755796263944,-480.0,0.00021269,2]
[380506129,1755796263953,-480.0,0.00021269,2]
[380506130,1755796263964,-1339.59,0.00021269,2]
[380506131,1755796263974,-764.64,0.00021269,2]
[380506132,1755796263984,-1403.75,0.00021269,2]
[380506133,1755796263993,-493.09,0.00021269,2]
[380506134,1755796264002,-1591.86,0.00021269,2]
[380506135,1755796264011,-1264.66,0.00021269,2]
[380506136,1755796264021,-480.0,0.00021269,2]
[380506137,1755796264030,-480.0,0.00021269,2]
[380506138,1755796264040,-480.0,0.00021269,2]
[380506139,1755796264049,-638.49,0.00021269,2]
[380506140,1755796264059,-480.0,0.00021269,2]
[380506141,1755796264068,-712.51,0.00021269,2]
[380506142,1755796264078,-898.89,0.00021269,2]
[380506143,1755796264087,-1704.85,0.00021269,2]
[380506144,1755796264097,-578.35,0.00021269,2]
[380506145,1755796264107,-1348.45,0.00021269,2]
[380506146,1755796264117,-480.0,0.00021269,2]
[380506147,1755796264127,-1704.87,0.00021269,2]
[380506148,1755796264137,-1021.37,0.00021269,2]
[380506149,1755796264147,-480.0,0.00021269,2]
[380506150,1755796264157,-2738.27,0.00021269,2]
[380506151,1755796264167,-764.6,0.00021269,2]
[380506152,1755796264177,-1669.08,0.00021269,2]
[380506153,1755796264187,-3186.28,0.00021269,2]
[380506154,1755796264199,-2363.46,0.00021269,2]
[380506155,1755796264208,-862.84,0.00021269,2]
[380506156,1755796264218,-1526.94,0.00021269,2]
[380506157,1755796264228,-480.0,0.00021269,2]
[380506158,1755796264238,-517.72,0.00021269,2]
[380506159,1755796264248,-13490.57,0.00021269,2]
[380506160,1755796264258,-749.78,0.00021269,2]
[380506161,1755796264272,-514.0,0.00021269,2]
[380506162,1755796264281,-480.0,0.00021269,2]
[380506163,1755796264290,-3003.54,0.00021269,2]
[380506164,1755796264300,-725.46,0.00021269,2]
[380506165,1755796264310,-480.0,0.00021269,2]
[380506166,1755796264322,-12836.72,0.00021269,2]
[380506167,1755796264332,-480.0,0.00021269,2]
[380506168,1755796264353,-1243.1,0.00021269,2]
[380506169,1755796264363,-1609.93,0.00021269,2]
[380506170,1755796264375,-480.0,0.00021269,2]
[380506171,1755796264388,-480.0,0.00021269,2]
[380506172,1755796264402,-8565.46,0.00021269,2]
[380506173,1755796264411,-480.0,0.00021269,2]
[380506174,1755796264421,-513.5,0.0002127,2]
[380506175,1755796264430,-2071.92,0.0002127,2]
[380506176,1755796264440,-1723.01,0.0002127,2]
[380506177,1755796264450,-3623.53,0.0002127,2]
[380506178,1755796264460,-415.6274142,0.00021273,2]
[380506179,1755796264468,-500.0,0.00021273,2]
[380506180,1755796264477,-160.72342722,0.00021273,2]
[380506181,1755796264486,-160.73245813,0.00021273,2]
[380506182,1755796264495,-500.0,0.00021273,2]
[380506183,1755796264504,-500.0,0.00021273,2]
[380506184,1755796264513,-500.0,0.00021273,2]
[380506185,1755796264522,-500.0,0.00021281,2]
[380506186,1755796264532,-480.0,0.00021281,2]
[380506187,1755796264541,-513.47,0.00021281,2]
[380506188,1755796264551,-480.0,0.00021281,2]
[380506189,1755796264560,-481.12,0.00021281,2]
[380506190,1755796264570,-1100.62,0.00021281,2]
[380506191,1755796264579,-676.36,0.00021281,2]
[380506192,1755796264588,-151.0,0.00021281,2]
[380506193,1755796264598,-544.49,0.00021281,2]
[380506194,1755796264607,-773.22,0.00021281,2]
[380506195,1755796264617,-480.0,0.00021281,2]
[380506196,1755796264626,-1666.89,0.00021281,2]
[380506197,1755796264774,-480.0,0.00021281,2]
[380506198,1755796264785,-480.0,0.00021281,2]
[380506199,1755796264794,-574.32,0.00021281,2]
[380506200,1755796264803,-686.37,0.00021281,2]
[380506201,1755796264812,-480.0,0.00021281,2]
[380506202,1755796264821,-783.65,0.00021281,2]
[380506203,1755796264830,-991.06,0.00021281,2]
[380506204,1755796264839,-480.0,0.00021281,2]
[380506205,1755796264849,-804.94,0.00021281,2]
[380506206,1755796264858,-480.0,0.00021281,2]
[380506207,1755796264867,-4916.94,0.00021281,2]
[380506208,1755796264877,-480.0,0.00021281,2]
[380506209,1755796264887,-1776.85,0.00021281,2]
[380506210,1755796264896,-918.37,0.00021281,2]
[380506211,1755796264906,-1076.14,0.00021281,2]
[380506212,1755796264915,-525.31,0.00021281,2]
[380506213,1755796264924,-2049.35,0.00021281,2]
[380506214,1755796264934,-480.0,0.00021281,2]
[380506215,1755796264944,-1215.14,0.00021281,2]
[380506216,1755796264953,-793.31,0.00021281,2]
[380506217,1755796264962,-480.0,0.00021282,2]
[380506218,1755796264972,-1285.05,0.00021282,2]
[380506219,1755796264981,-884.72,0.00021282,2]
[380506220,1755796264990,-978.38,0.00021282,2]
[380506221,1755796265000,-480.0,0.00021282,2]
[380506222,1755796265009,-480.0,0.00021282,2]
[380506223,1755796265019,-480.0,0.00021282,2]
[380506224,1755796265028,-480.0,0.00021282,2]
[380506225,1755796265037,-801.62,0.00021282,2]
[380506226,1755796265047,-1223.71,0.00021282,2]
[380506227,1755796265056,-677.58,0.00021282,2]
[380506228,1755796265065,-480.0,0.00021282,2]
[380506229,1755796265074,-480.0,0.00021282,2]
[380506230,1755796265083,-480.0,0.00021282,2]
[380506231,1755796265092,-566.96,0.00021282,2]
[380506232,1755796265101,-480.0,0.00021282,2]
[380506233,1755796265110,-480.0,0.00021282,2]
[380506234,1755796265119,-480.0,0.00021282,2]
[380506235,1755796265128,-1649.16,0.00021282,2]
[380506236,1755796265138,-715.91,0.00021282,2]
[380506237,1755796265147,-233.683151,0.00021282,2]
[380506238,1755796265156,-691.28,0.00021282,2]
[380506239,1755796265165,-480.0,0.00021282,2]
[380506240,1755796265174,-1001.2,0.00021282,2]
[380506241,1755796265184,-532.9006167,0.00021282,2]
[380506242,1755796265193,-436.75460616,0.00021282,2]
[380506243,1755796265202,-720.08,0.00021282,2]
[380506244,1755796265212,-823.48,0.00021282,2]
[380506245,1755796265222,-480.0,0.00021282,2]
[380506246,1755796265232,-480.0,0.00021282,2]
[380506247,1755796265241,-612.13,0.00021282,2]
[380506248,1755796265250,-502.96,0.00021282,2]